[Event "*** Titled Tuesday Blitz"]
[Site "Chess.com"]
[Date "2020.05.05"]
[Round "8"]
[White "guillembaches"]
[Black "Savagelittlemole"]
[Result "0-1"]
[WhiteElo "2421"]
[BlackElo "2571"]
[TimeControl "180+1"]
[EndTime "11:35:57 PDT"]
[Termination "Savagelittlemole won on time"]

1. e4 {[%clk 0:03:00.9]} 1... c5 {[%clk 0:02:59.5]} 2. Nf3 {[%clk 0:03:01]} 2...
d6 {[%clk 0:02:59.2]} 3. d4 {[%clk 0:03:00.8]} 3... cxd4 {[%clk 0:02:59.3]} 4.
Nxd4 {[%clk 0:03:01.7]} 4... Nf6 {[%clk 0:02:58.5]} 5. Nc3 {[%clk 0:03:02.6]}
5... a6 {[%clk 0:02:58.2]} 6. Be2 {[%clk 0:03:02.7]} 6... e5 {[%clk 0:02:56.2]}
7. Nf3 {[%clk 0:03:02.9]} 7... Be7 {[%clk 0:02:55.9]} 8. Bg5 {[%clk 0:03:03.3]}
8... Be6 {[%clk 0:02:49.6]} 9. Bxf6 {[%clk 0:03:03.2]} 9... Bxf6 {[%clk
0:02:47.7]} 10. Nd5 {[%clk 0:03:03.7]} 10... Nd7 {[%clk 0:02:43.9]} 11. Bc4
{[%clk 0:03:03.5]} 11... O-O {[%clk 0:02:41.9]} 12. O-O {[%clk 0:03:02.4]} 12...
Rc8 {[%clk 0:02:34.8]} 13. Qe2 {[%clk 0:02:59.5]} 13... b5 {[%clk 0:02:28.8]}
14. Bb3 {[%clk 0:02:58.5]} 14... Nc5 {[%clk 0:02:27.2]} 15. Rad1 {[%clk
0:02:56.3]} 15... Nxb3 {[%clk 0:02:17.7]} 16. axb3 {[%clk 0:02:51.4]} 16... Be7
{[%clk 0:02:10.2]} 17. c3 {[%clk 0:02:45.7]} 17... f5 {[%clk 0:01:59.8]} 18.
exf5 {[%clk 0:02:44]} 18... Bxf5 {[%clk 0:01:59.6]} 19. Ne3 {[%clk 0:02:35.6]}
19... Qe8 {[%clk 0:01:43.4]} 20. Nxf5 {[%clk 0:02:27.2]} 20... Rxf5 {[%clk
0:01:44.3]} 21. Qe4 {[%clk 0:02:25.4]} 21... Rf4 {[%clk 0:01:42.2]} 22. Qd5+
{[%clk 0:02:19.6]} 22... Kh8 {[%clk 0:01:39.6]} 23. g3 {[%clk 0:02:14]} 23...
Rf6 {[%clk 0:01:35.4]} 24. Nd2 {[%clk 0:02:00.1]} 24... Rh6 {[%clk 0:01:32.8]}
25. Qg2 {[%clk 0:01:51.3]} 25... Qh5 {[%clk 0:01:22.1]} 26. Ne4 {[%clk
0:01:47.3]} 26... Qg4 {[%clk 0:01:13.3]} 27. Rd5 {[%clk 0:01:31.9]} 27... Rf8
{[%clk 0:01:09.1]} 28. f3 {[%clk 0:01:27]} 28... Qe6 {[%clk 0:01:06.9]} 29. Rfd1
{[%clk 0:01:26.7]} 29... Rh5 {[%clk 0:01:00.1]} 30. b4 {[%clk 0:01:14.5]} 30...
Rhf5 {[%clk 0:00:58.7]} 31. R5d3 {[%clk 0:00:47.4]} 31... Qf7 {[%clk 0:00:57.6]}
32. Rf1 {[%clk 0:00:32.8]} 32... d5 {[%clk 0:00:55.5]} 33. Nd2 {[%clk 0:00:33]}
33... h6 {[%clk 0:00:51.2]} 34. Kh1 {[%clk 0:00:32.1]} 34... e4 {[%clk
0:00:44.9]} 35. Re3 {[%clk 0:00:32]} 35... Bg5 {[%clk 0:00:39.7]} 36. f4 {[%clk
0:00:31]} 36... Bd8 {[%clk 0:00:39.6]} 37. Re2 {[%clk 0:00:30.7]} 37... Bb6
{[%clk 0:00:34]} 38. Rd1 {[%clk 0:00:30.5]} 38... g5 {[%clk 0:00:30.1]} 39. fxg5
{[%clk 0:00:28.6]} 39... Rxg5 {[%clk 0:00:28.2]} 40. Rf1 {[%clk 0:00:22.9]}
40... Rf5 {[%clk 0:00:25.9]} 41. Rxf5 {[%clk 0:00:22.5]} 41... Qxf5 {[%clk
0:00:25.9]} 42. h3 {[%clk 0:00:22]} 42... e3 {[%clk 0:00:24.2]} 43. Nb3 {[%clk
0:00:20.8]} 43... Qb1+ {[%clk 0:00:21]} 44. Kh2 {[%clk 0:00:20.5]} 44... Rf2
{[%clk 0:00:20.2]} 45. Rxf2 {[%clk 0:00:18.2]} 45... exf2 {[%clk 0:00:20.8]} 46.
Nd2 {[%clk 0:00:18.7]} 46... Qg1+ {[%clk 0:00:17.6]} 0-1

[Event "*** Titled Tuesday Blitz"]
[Site "Chess.com"]
[Date "2020.05.05"]
[Round "8"]
[White "plumalka"]
[Black "1f3_2g41-0"]
[Result "0-1"]
[WhiteElo "2434"]
[BlackElo "2303"]
[TimeControl "180+1"]
[EndTime "11:35:58 PDT"]
[Termination "1f3_2g41-0 won by checkmate"]

1. e4 {[%clk 0:03:00.9]} 1... c5 {[%clk 0:02:59.7]} 2. Nf3 {[%clk 0:02:57.6]}
2... d6 {[%clk 0:02:59.5]} 3. d4 {[%clk 0:02:58.2]} 3... cxd4 {[%clk 0:02:59.1]}
4. Nxd4 {[%clk 0:02:59.1]} 4... Nf6 {[%clk 0:02:59.8]} 5. Nc3 {[%clk 0:02:59.7]}
5... a6 {[%clk 0:03:00.2]} 6. Nb3 {[%clk 0:02:59.9]} 6... g6 {[%clk 0:02:52.2]}
7. Be2 {[%clk 0:02:52.7]} 7... Bg7 {[%clk 0:02:48.7]} 8. g4 {[%clk 0:02:52.8]}
8... Nc6 {[%clk 0:02:45]} 9. Be3 {[%clk 0:02:49.4]} 9... b5 {[%clk 0:02:43.6]}
10. f3 {[%clk 0:02:48.4]} 10... Bb7 {[%clk 0:02:36.6]} 11. Qd2 {[%clk
0:02:43.5]} 11... h5 {[%clk 0:02:29.8]} 12. g5 {[%clk 0:02:41.8]} 12... Nd7
{[%clk 0:02:29.3]} 13. O-O-O {[%clk 0:02:30.3]} 13... O-O {[%clk 0:02:13.8]} 14.
f4 {[%clk 0:02:22]} 14... Na5 {[%clk 0:02:06]} 15. Nd5 {[%clk 0:02:07.7]} 15...
Nxb3+ {[%clk 0:02:02.2]} 16. axb3 {[%clk 0:02:04.6]} 16... e6 {[%clk 0:01:57.3]}
17. Nc3 {[%clk 0:01:54.8]} 17... b4 {[%clk 0:01:53.1]} 18. Na4 {[%clk
0:01:51.2]} 18... Bxe4 {[%clk 0:01:53]} 19. Rhe1 {[%clk 0:01:43.5]} 19... d5
{[%clk 0:01:40.5]} 20. Bd3 {[%clk 0:01:42.9]} 20... Bf3 {[%clk 0:01:37.1]} 21.
Be2 {[%clk 0:01:43.1]} 21... Be4 {[%clk 0:01:35.9]} 22. Kb1 {[%clk 0:01:42.6]}
22... Rc8 {[%clk 0:01:33.1]} 23. Bd3 {[%clk 0:01:42.4]} 23... Bf3 {[%clk
0:01:33]} 24. Rc1 {[%clk 0:01:41.9]} 24... d4 {[%clk 0:01:30.6]} 25. Bg1 {[%clk
0:01:36.4]} 25... Nb6 {[%clk 0:01:26.3]} 26. Be4 {[%clk 0:01:24.9]} 26... Bxe4
{[%clk 0:01:23.1]} 27. Rxe4 {[%clk 0:01:25.8]} 27... Nxa4 {[%clk 0:01:21.6]} 28.
bxa4 {[%clk 0:01:26.7]} 28... Qd5 {[%clk 0:01:14.6]} 29. Ree1 {[%clk 0:01:14.1]}
29... a5 {[%clk 0:01:04]} 30. Red1 {[%clk 0:01:09.7]} 30... Rfd8 {[%clk
0:01:02.4]} 31. Qd3 {[%clk 0:01:05.8]} 31... Qc6 {[%clk 0:00:52.2]} 32. Rd2
{[%clk 0:01:04]} 32... Qxa4 {[%clk 0:00:49.9]} 33. Rcd1 {[%clk 0:01:01.1]} 33...
Rd5 {[%clk 0:00:43.2]} 34. Qf3 {[%clk 0:00:53.5]} 34... Rc3 {[%clk 0:00:30.6]}
35. Qe4 {[%clk 0:00:37.3]} 35... b3 {[%clk 0:00:30.4]} 36. cxb3 {[%clk 0:00:30]}
36... Rxb3 {[%clk 0:00:28.4]} 37. Bxd4 {[%clk 0:00:27]} 37... Rb4 {[%clk
0:00:26.2]} 38. Qc2 {[%clk 0:00:17.5]} 38... Qxc2+ {[%clk 0:00:26]} 39. Kxc2
{[%clk 0:00:18.4]} 39... Rbxd4 {[%clk 0:00:25.4]} 40. Rxd4 {[%clk 0:00:18.4]}
40... Rxd4 {[%clk 0:00:25.7]} 41. Ra1 {[%clk 0:00:18.6]} 41... a4 {[%clk
0:00:25]} 42. Rf1 {[%clk 0:00:18.6]} 42... Rc4+ {[%clk 0:00:24.4]} 43. Kd3
{[%clk 0:00:18.4]} 43... Rb4 {[%clk 0:00:24.9]} 44. Ra1 {[%clk 0:00:18.1]} 44...
Bxb2 {[%clk 0:00:24]} 45. Ra2 {[%clk 0:00:17.6]} 45... a3 {[%clk 0:00:24.4]} 46.
h4 {[%clk 0:00:17.4]} 46... Rxf4 {[%clk 0:00:24.9]} 47. Ke3 {[%clk 0:00:17.4]}
47... Rxh4 {[%clk 0:00:25.3]} 48. Kf3 {[%clk 0:00:17.9]} 48... Rg4 {[%clk
0:00:25.5]} 49. Ke3 {[%clk 0:00:17.4]} 49... Rxg5 {[%clk 0:00:25.7]} 50. Kf3
{[%clk 0:00:18.3]} 50... Rg1 {[%clk 0:00:25.9]} 51. Kf2 {[%clk 0:00:18.5]} 51...
Ra1 {[%clk 0:00:26.4]} 52. Rxa1 {[%clk 0:00:17.5]} 52... Bxa1 {[%clk 0:00:27.3]}
53. Kf3 {[%clk 0:00:17.2]} 53... Bb2 {[%clk 0:00:28.2]} 54. Ke4 {[%clk
0:00:17.9]} 54... a2 {[%clk 0:00:29.1]} 55. Kf4 {[%clk 0:00:18.5]} 55... a1=Q
{[%clk 0:00:30]} 56. Kg5 {[%clk 0:00:19.4]} 56... Qc1+ {[%clk 0:00:29.5]} 57.
Kh4 {[%clk 0:00:19.7]} 57... Bf6+ {[%clk 0:00:29.5]} 58. Kg3 {[%clk 0:00:19.8]}
58... Qe3+ {[%clk 0:00:30]} 59. Kg2 {[%clk 0:00:20.2]} 59... Be5 {[%clk
0:00:29.8]} 60. Kf1 {[%clk 0:00:19.9]} 60... Bg3 {[%clk 0:00:28.5]} 61. Kg2
{[%clk 0:00:20.2]} 61... Qf2+ {[%clk 0:00:28.8]} 62. Kh3 {[%clk 0:00:20.6]}
62... Qh2# {[%clk 0:00:29.7]} 0-1

[Event "*** Titled Tuesday Blitz"]
[Site "Chess.com"]
[Date "2020.05.05"]
[Round "8"]
[White "crossingthestreet"]
[Black "marszach123"]
[Result "1-0"]
[WhiteElo "2288"]
[BlackElo "2143"]
[TimeControl "180+1"]
[EndTime "11:35:59 PDT"]
[Termination "crossingthestreet won on time"]

1. c4 {[%clk 0:02:55.2]} 1... e5 {[%clk 0:02:59.2]} 2. Nc3 {[%clk 0:02:54.7]}
2... Nf6 {[%clk 0:02:59.6]} 3. Nf3 {[%clk 0:02:54.7]} 3... Nc6 {[%clk 0:03:00]}
4. e3 {[%clk 0:02:54.7]} 4... Bb4 {[%clk 0:02:55.3]} 5. Qc2 {[%clk 0:02:55.2]}
5... O-O {[%clk 0:02:53.9]} 6. Nd5 {[%clk 0:02:55.2]} 6... d6 {[%clk 0:02:41.2]}
7. a3 {[%clk 0:02:53.9]} 7... Ba5 {[%clk 0:02:38.1]} 8. b4 {[%clk 0:02:44.6]}
8... Bb6 {[%clk 0:02:37.9]} 9. Ng5 {[%clk 0:02:42.7]} 9... g6 {[%clk 0:02:30.3]}
10. h4 {[%clk 0:02:42.8]} 10... Bf5 {[%clk 0:02:17.2]} 11. Bd3 {[%clk
0:02:23.3]} 11... Bxd3 {[%clk 0:02:06.6]} 12. Qxd3 {[%clk 0:02:24.2]} 12... Nxd5
{[%clk 0:01:53.3]} 13. cxd5 {[%clk 0:02:25.1]} 13... Ne7 {[%clk 0:01:53.4]} 14.
h5 {[%clk 0:02:11.6]} 14... Nf5 {[%clk 0:01:43.7]} 15. Nxh7 {[%clk 0:01:40]}
15... Kxh7 {[%clk 0:01:43.4]} 16. hxg6+ {[%clk 0:01:39.4]} 16... Kxg6 {[%clk
0:01:43.5]} 17. g4 {[%clk 0:01:39.5]} 17... Qg5 {[%clk 0:01:30]} 18. gxf5+
{[%clk 0:01:34.8]} 18... Kf6 {[%clk 0:01:29.4]} 19. Bb2 {[%clk 0:01:26.5]} 19...
Rh8 {[%clk 0:01:28.6]} 20. O-O-O {[%clk 0:01:23.7]} 20... Qxf5 {[%clk
0:01:25.1]} 21. e4 {[%clk 0:01:14.8]} 21... Qf4 {[%clk 0:01:10.6]} 22. Rh3
{[%clk 0:00:45.3]} 22... Rxh3 {[%clk 0:01:04]} 23. Qxh3 {[%clk 0:00:46.2]} 23...
Qxe4 {[%clk 0:01:00.9]} 24. f4 {[%clk 0:00:34.2]} 24... Qxd5 {[%clk 0:00:28.8]}
25. Qh4+ {[%clk 0:00:20.5]} 25... Ke6 {[%clk 0:00:27.7]} 26. f5+ {[%clk
0:00:20.5]} 26... Kd7 {[%clk 0:00:25.3]} 27. Rh1 {[%clk 0:00:18.3]} 27... Bd4
{[%clk 0:00:19.9]} 28. Bxd4 {[%clk 0:00:17.4]} 28... Qxd4 {[%clk 0:00:19.8]} 29.
Qh7 {[%clk 0:00:17.4]} 29... Qa1+ {[%clk 0:00:18.6]} 30. Kc2 {[%clk 0:00:17.7]}
30... Qa2+ {[%clk 0:00:18.4]} 31. Kd1 {[%clk 0:00:18.2]} 31... Qb1+ {[%clk
0:00:17]} 32. Ke2 {[%clk 0:00:18.4]} 32... Qe4+ {[%clk 0:00:17.2]} 33. Kd1
{[%clk 0:00:18.6]} 33... Qb1+ {[%clk 0:00:09.4]} 34. Ke2 {[%clk 0:00:18.7]}
34... Qe4+ {[%clk 0:00:08.7]} 35. Kf2 {[%clk 0:00:19.3]} 35... Qf4+ {[%clk
0:00:06]} 36. Kg2 {[%clk 0:00:19.1]} 36... Qg4+ {[%clk 0:00:05]} 37. Kf2 {[%clk
0:00:14.2]} 37... Qf4+ {[%clk 0:00:05.1]} 38. Ke1 {[%clk 0:00:14.5]} 38... Qg3+
{[%clk 0:00:03.7]} 39. Kd1 {[%clk 0:00:14.2]} 39... Qg4+ {[%clk 0:00:03.4]} 40.
Kc1 {[%clk 0:00:11.5]} 40... Qc4+ {[%clk 0:00:03.1]} 41. Kb2 {[%clk 0:00:11.8]}
41... a5 {[%clk 0:00:01.5]} 42. b5 {[%clk 0:00:09.9]} 42... Qxb5+ {[%clk
0:00:01]} 43. Kc2 {[%clk 0:00:10.8]} 43... Qc4+ {[%clk 0:00:01.1]} 44. Kd1
{[%clk 0:00:11.5]} 1-0

[Event "*** Titled Tuesday Blitz"]
[Site "Chess.com"]
[Date "2020.05.05"]
[Round "8"]
[White "FMalexhdez"]
[Black "HouseOfDurin"]
[Result "0-1"]
[WhiteElo "2109"]
[BlackElo "1994"]
[TimeControl "180+1"]
[EndTime "11:36:02 PDT"]
[Termination "HouseOfDurin won by resignation"]

1. e4 {[%clk 0:03:00.9]} 1... c5 {[%clk 0:02:59.4]} 2. Nf3 {[%clk 0:03:00.6]}
2... Nc6 {[%clk 0:02:59.9]} 3. d4 {[%clk 0:03:01.1]} 3... cxd4 {[%clk
0:03:00.8]} 4. Nxd4 {[%clk 0:03:00.8]} 4... e5 {[%clk 0:03:01.3]} 5. Nb5 {[%clk
0:02:59.8]} 5... d6 {[%clk 0:03:01.2]} 6. N1c3 {[%clk 0:02:59.9]} 6... a6 {[%clk
0:03:01.6]} 7. Na3 {[%clk 0:02:58]} 7... b5 {[%clk 0:03:02.1]} 8. Nd5 {[%clk
0:02:57.3]} 8... Nf6 {[%clk 0:03:02.6]} 9. Bg5 {[%clk 0:02:56.1]} 9... Be7
{[%clk 0:03:02.5]} 10. Bxf6 {[%clk 0:02:56.2]} 10... Bxf6 {[%clk 0:03:03.4]} 11.
c3 {[%clk 0:02:55.6]} 11... O-O {[%clk 0:03:03.1]} 12. Nc2 {[%clk 0:02:55.8]}
12... Bg5 {[%clk 0:02:57.5]} 13. Nce3 {[%clk 0:02:55.5]} 13... Bxe3 {[%clk
0:02:56.6]} 14. Nxe3 {[%clk 0:02:54.6]} 14... Be6 {[%clk 0:02:57]} 15. Bd3
{[%clk 0:02:47.4]} 15... Ne7 {[%clk 0:02:53.3]} 16. O-O {[%clk 0:02:31.7]} 16...
d5 {[%clk 0:02:51.5]} 17. exd5 {[%clk 0:02:18.6]} 17... Nxd5 {[%clk 0:02:52.4]}
18. Nxd5 {[%clk 0:02:14.1]} 18... Qxd5 {[%clk 0:02:42.2]} 19. Qc2 {[%clk
0:02:12.1]} 19... f5 {[%clk 0:02:41]} 20. f3 {[%clk 0:02:06.4]} 20... Qc5+
{[%clk 0:02:36.9]} 21. Kh1 {[%clk 0:02:05.6]} 21... g6 {[%clk 0:02:18]} 22. Rfe1
{[%clk 0:02:04]} 22... Rfe8 {[%clk 0:02:12.5]} 23. a4 {[%clk 0:02:01.9]} 23...
b4 {[%clk 0:01:50.3]} 24. cxb4 {[%clk 0:02:00.5]} 24... Qxb4 {[%clk 0:01:39.2]}
25. Rxe5 {[%clk 0:01:58.6]} 25... Bb3 {[%clk 0:01:25.5]} 26. Qe2 {[%clk
0:01:56.5]} 26... Bxa4 {[%clk 0:01:16.7]} 27. Bc4+ {[%clk 0:01:43.6]} 27... Kg7
{[%clk 0:00:56.1]} 28. h4 {[%clk 0:01:29.2]} 28... Rab8 {[%clk 0:00:11.6]} 29.
Rxa4 {[%clk 0:01:24.6]} 29... Qxa4 {[%clk 0:00:09.5]} 30. Re7+ {[%clk
0:01:23.9]} 30... Rxe7 {[%clk 0:00:06.9]} 31. Qxe7+ {[%clk 0:01:22.2]} 31... Kh6
{[%clk 0:00:07.1]} 32. Qe3+ {[%clk 0:01:15.9]} 32... Kg7 {[%clk 0:00:06.3]} 33.
Qe5+ {[%clk 0:01:15.4]} 33... Kh6 {[%clk 0:00:06.4]} 34. Qxb8 {[%clk 0:01:06]}
34... Qxc4 {[%clk 0:00:06.3]} 35. Qf8+ {[%clk 0:00:40.4]} 35... Kh5 {[%clk
0:00:05.7]} 36. Qf6 {[%clk 0:00:31.7]} 36... Qxh4+ {[%clk 0:00:05]} 37. Qxh4+
{[%clk 0:00:30]} 37... Kxh4 {[%clk 0:00:05.9]} 38. b4 {[%clk 0:00:23.6]} 38...
f4 {[%clk 0:00:06]} 39. Kh2 {[%clk 0:00:20.1]} 39... h6 {[%clk 0:00:05.8]} 40.
Kg1 {[%clk 0:00:19.6]} 40... Kg3 {[%clk 0:00:06]} 41. Kf1 {[%clk 0:00:16.6]}
41... h5 {[%clk 0:00:06.2]} 42. Kg1 {[%clk 0:00:13.4]} 42... h4 {[%clk
0:00:06.1]} 43. Kh1 {[%clk 0:00:12.9]} 43... g5 {[%clk 0:00:05.5]} 44. Kg1
{[%clk 0:00:12.5]} 44... h3 {[%clk 0:00:05.8]} 45. b5 {[%clk 0:00:07]} 45...
axb5 {[%clk 0:00:05.6]} 46. Kh1 {[%clk 0:00:06.9]} 46... hxg2+ {[%clk
0:00:04.8]} 47. Kg1 {[%clk 0:00:06.7]} 47... Kxf3 {[%clk 0:00:04.9]} 0-1

[Event "*** Titled Tuesday Blitz"]
[Site "Chess.com"]
[Date "2020.05.05"]
[Round "8"]
[White "bancsoo"]
[Black "Sanan_Sjugirov"]
[Result "1-0"]
[WhiteElo "2748"]
[BlackElo "2846"]
[TimeControl "180+1"]
[EndTime "11:36:04 PDT"]
[Termination "bancsoo won by resignation"]

1. Nf3 {[%clk 0:03:00.9]} 1... d5 {[%clk 0:02:59.8]} 2. g3 {[%clk 0:03:00.5]}
2... Bg4 {[%clk 0:02:59]} 3. Bg2 {[%clk 0:03:00.6]} 3... c6 {[%clk 0:02:58.6]}
4. O-O {[%clk 0:03:01.3]} 4... e6 {[%clk 0:02:58.5]} 5. h3 {[%clk 0:03:01.6]}
5... Bh5 {[%clk 0:02:58]} 6. d4 {[%clk 0:03:02]} 6... Nf6 {[%clk 0:02:47.3]} 7.
c4 {[%clk 0:03:02.3]} 7... Be7 {[%clk 0:02:46.8]} 8. Qb3 {[%clk 0:02:42.7]} 8...
Qb6 {[%clk 0:02:46.2]} 9. Nc3 {[%clk 0:02:36]} 9... Nbd7 {[%clk 0:02:31]} 10. g4
{[%clk 0:02:27.1]} 10... Bg6 {[%clk 0:02:30.5]} 11. Ne5 {[%clk 0:02:04.5]} 11...
Nxe5 {[%clk 0:02:23.6]} 12. dxe5 {[%clk 0:02:04.4]} 12... Nd7 {[%clk 0:02:23.7]}
13. cxd5 {[%clk 0:01:58.7]} 13... cxd5 {[%clk 0:02:20.2]} 14. Qxb6 {[%clk
0:01:57.3]} 14... Nxb6 {[%clk 0:02:02.9]} 15. f4 {[%clk 0:01:55.7]} 15... f5
{[%clk 0:01:53.4]} 16. Be3 {[%clk 0:01:42.5]} 16... Nc4 {[%clk 0:01:50.4]} 17.
Bd4 {[%clk 0:01:42.6]} 17... a6 {[%clk 0:01:32.9]} 18. Rac1 {[%clk 0:01:34.9]}
18... Na5 {[%clk 0:01:00.9]} 19. Na4 {[%clk 0:01:21.5]} 19... Nc6 {[%clk
0:00:56.5]} 20. Bc5 {[%clk 0:01:19.1]} 20... Rb8 {[%clk 0:00:19.8]} 21. Rc3
{[%clk 0:01:02.6]} 21... Rf8 {[%clk 0:00:15.3]} 22. g5 {[%clk 0:00:53.8]} 22...
Bh5 {[%clk 0:00:14.8]} 23. Kf2 {[%clk 0:00:48]} 23... h6 {[%clk 0:00:14.9]} 24.
h4 {[%clk 0:00:47.9]} 24... Kd7 {[%clk 0:00:08.2]} 25. Rfc1 {[%clk 0:00:44.8]}
25... hxg5 {[%clk 0:00:07.4]} 26. hxg5 {[%clk 0:00:44.7]} 26... Rh8 {[%clk
0:00:07.3]} 27. e3 {[%clk 0:00:31.1]} 27... Be8 {[%clk 0:00:05.5]} 28. Bxe7
{[%clk 0:00:21.2]} 28... Kxe7 {[%clk 0:00:06.4]} 29. Nc5 {[%clk 0:00:20.7]}
29... a5 {[%clk 0:00:06]} 30. a3 {[%clk 0:00:20.3]} 30... Rh4 {[%clk 0:00:01.4]}
31. Kf3 {[%clk 0:00:18.5]} 31... Rh8 {[%clk 0:00:02]} 32. Kg3 {[%clk 0:00:18.7]}
32... b6 {[%clk 0:00:02.5]} 33. Nb3 {[%clk 0:00:19.1]} 33... Rc8 {[%clk
0:00:02.4]} 34. Nd4 {[%clk 0:00:18.7]} 34... Nxd4 {[%clk 0:00:02]} 35. exd4
{[%clk 0:00:15]} 35... Rxc3+ {[%clk 0:00:02.2]} 36. Rxc3 {[%clk 0:00:15.8]}
36... Kd8 {[%clk 0:00:03.1]} 37. Rc1 {[%clk 0:00:13.9]} 37... Bd7 {[%clk
0:00:03.4]} 38. b4 {[%clk 0:00:13.2]} 38... axb4 {[%clk 0:00:03.3]} 39. axb4
{[%clk 0:00:14.1]} 39... Bb5 {[%clk 0:00:03.5]} 40. Ra1 {[%clk 0:00:13]} 40...
Bc6 {[%clk 0:00:01.8]} 41. Ra7 {[%clk 0:00:13.2]} 41... Rg8 {[%clk 0:00:01.8]}
42. g6 {[%clk 0:00:12.9]} 42... Kc8 {[%clk 0:00:02.2]} 43. Re7 {[%clk
0:00:12.4]} 43... Bd7 {[%clk 0:00:02.7]} 44. Rf7 {[%clk 0:00:12.7]} 44... Kd8
{[%clk 0:00:03.1]} 45. Kh4 {[%clk 0:00:13.1]} 45... Be8 {[%clk 0:00:03.4]} 46.
Rb7 {[%clk 0:00:12.4]} 46... Bxg6 {[%clk 0:00:03.1]} 47. Rb8+ {[%clk 0:00:12.6]}
1-0

[Event "*** Titled Tuesday Blitz"]
[Site "Chess.com"]
[Date "2020.05.05"]
[Round "8"]
[White "m_ezat"]
[Black "BaMBoMaTTo"]
[Result "1-0"]
[WhiteElo "2491"]
[BlackElo "2648"]
[TimeControl "180+1"]
[EndTime "11:36:04 PDT"]
[Termination "m_ezat won by resignation"]

1. d4 {[%clk 0:03:00.9]} 1... Nf6 {[%clk 0:03:00.1]} 2. c4 {[%clk 0:03:01.2]}
2... e6 {[%clk 0:03:00.5]} 3. Nc3 {[%clk 0:03:01.5]} 3... Bb4 {[%clk 0:03:00.6]}
4. e3 {[%clk 0:03:02]} 4... O-O {[%clk 0:03:00.8]} 5. a3 {[%clk 0:03:02.2]} 5...
Bxc3+ {[%clk 0:03:00.8]} 6. bxc3 {[%clk 0:03:02.5]} 6... c5 {[%clk 0:02:56.8]}
7. Bd3 {[%clk 0:03:02.6]} 7... b6 {[%clk 0:02:52.6]} 8. Ne2 {[%clk 0:03:02.2]}
8... Nc6 {[%clk 0:02:52.2]} 9. O-O {[%clk 0:03:02.6]} 9... Ba6 {[%clk
0:02:51.7]} 10. e4 {[%clk 0:03:02.1]} 10... d6 {[%clk 0:02:41.4]} 11. Bg5 {[%clk
0:02:59]} 11... h6 {[%clk 0:02:41.3]} 12. Bh4 {[%clk 0:02:58.5]} 12... e5 {[%clk
0:02:37.7]} 13. f4 {[%clk 0:02:56.8]} 13... exf4 {[%clk 0:02:29.8]} 14. Nxf4
{[%clk 0:02:52.8]} 14... g5 {[%clk 0:02:29.5]} 15. Nh5 {[%clk 0:02:53.3]} 15...
Nxh5 {[%clk 0:02:01.1]} 16. Qxh5 {[%clk 0:02:52.2]} 16... Kg7 {[%clk 0:02:01.5]}
17. e5 {[%clk 0:02:48.3]} 17... dxe5 {[%clk 0:01:29.1]} 18. Rxf7+ {[%clk
0:02:46.2]} 18... Rxf7 {[%clk 0:01:28.9]} 19. Qg6+ {[%clk 0:02:46.2]} 19... Kf8
{[%clk 0:01:28.5]} 20. Qxh6+ {[%clk 0:02:44.9]} 20... Rg7 {[%clk 0:01:15.7]} 21.
Rf1+ {[%clk 0:02:29.4]} 21... Kg8 {[%clk 0:01:15.9]} 22. Qe6+ {[%clk 0:02:23.8]}
22... Kh8 {[%clk 0:01:16.1]} 23. Rf6 {[%clk 0:01:34.1]} 23... Qxf6 {[%clk
0:01:15.8]} 24. Qxf6 {[%clk 0:01:33.2]} 24... gxh4 {[%clk 0:01:16.1]} 25. Qxc6
{[%clk 0:01:14.4]} 25... Bb7 {[%clk 0:01:16]} 26. Qh6+ {[%clk 0:01:13]} 26...
Kg8 {[%clk 0:01:16.5]} 27. Qe6+ {[%clk 0:01:03.1]} 27... Kh8 {[%clk 0:01:11.2]}
28. d5 {[%clk 0:00:57.7]} 28... Rf8 {[%clk 0:01:03.8]} 29. Qh6+ {[%clk
0:00:56.9]} 29... Kg8 {[%clk 0:01:03.8]} 30. Bf5 {[%clk 0:00:56.2]} 30... Rxf5
{[%clk 0:01:00.7]} 31. Qe6+ {[%clk 0:00:55.7]} 31... Rgf7 {[%clk 0:00:59.9]} 32.
h3 {[%clk 0:00:52]} 32... Rg5 {[%clk 0:00:52.3]} 33. g4 {[%clk 0:00:39.4]} 33...
hxg3 {[%clk 0:00:50.1]} 34. Kg2 {[%clk 0:00:39.8]} 34... Kg7 {[%clk 0:00:45.1]}
35. h4 {[%clk 0:00:39]} 35... Rf2+ {[%clk 0:00:35.9]} 36. Kg1 {[%clk 0:00:39]}
36... Rg6 {[%clk 0:00:19.3]} 37. Qxe5+ {[%clk 0:00:37.3]} 37... Rff6 {[%clk
0:00:14.6]} 38. h5 {[%clk 0:00:33.5]} 38... Rg4 {[%clk 0:00:11.3]} 39. h6+
{[%clk 0:00:28.6]} 39... Kg6 {[%clk 0:00:09.6]} 40. h7 {[%clk 0:00:20.5]} 40...
Rh4 {[%clk 0:00:09.9]} 41. Qxg3+ {[%clk 0:00:18.8]} 1-0